fUST/lending_fUST_20250927
["ID","MTS","AMOUNT","RATE_DAILY","PERIOD"]
[387852273,1758930649772,-500.0,0.0003759,30]
[387852274,1758930649781,-243.0,0.00037685,2]
[387852275,1758930649790,-243.0,0.00037721,7]
[387852276,1758930649799,-960.0,0.00037734,2]
[387852277,1758930649809,-750.0,0.00037752,5]
[387852278,1758930649818,-997.61784146,0.00037866,30]
[387852279,1758930649827,-390.5204316,0.000379,30]
[387852280,1758930649836,-390.5204316,0.000379,30]
[387852281,1758930649845,-390.5204316,0.000379,30]
[387852282,1758930649855,-390.5204316,0.000379,30]
[387852283,1758930649864,-622.77775158,0.00037927,2]
[387852284,1758930649874,-16722.4288721,0.0003799,3]
[387852285,1758930649883,-419.6816789,0.0003799,3]
[387852286,1758930649892,-58876.16084717,0.00038,7]
[387852287,1758930649902,-162.2998523,0.00038037,30]
[387852288,1758930649911,-189.1051805,0.00038037,30]
[387852289,1758930649920,-586.3794058,0.00038037,30]
[387852290,1758930649929,-296.8483435,0.00038037,30]
[387852291,1758930649939,-586.3794058,0.00038037,30]
[387852292,1758930649948,-296.8483435,0.00038037,30]
[387852293,1758930649958,-162.2998523,0.00038037,30]
[387852294,1758930649967,-189.1051805,0.00038037,30]
[387852295,1758930649976,-291.5468699,0.00038037,30]
[387852296,1758930649986,-162.2998523,0.00038037,30]
[387852297,1758930649995,-586.3794058,0.00038037,30]
[387852298,1758930650004,-162.2998523,0.00038037,30]
[387852299,1758930650013,-586.3794058,0.00038037,30]
[387852300,1758930650022,-161.4660873,0.00038037,30]
[387852301,1758930650031,-189.1051805,0.00038037,30]
[387852302,1758930650040,-586.3794058,0.00038037,30]
[387852303,1758930650049,-951.3459158,0.00038037,30]
[387852304,1758930650059,-189.1051805,0.00038037,30]
[387852305,1758930650068,-189.1051805,0.00038037,30]
[387852306,1758930650077,-507.7155672,0.00038037,30]
[387852307,1758930650086,-999.0,0.00038082,120]
[387852308,1758930650095,-500.0,0.00038139,30]
[387852309,1758930650105,-175.80869951,0.00038182,120]
[387852310,1758930650114,-978.0,0.00038219,2]
[387852311,1758930650123,-635.0,0.00038219,2]
[387852312,1758930650132,-2160.0,0.00038219,2]
[387852313,1758930650141,-150.0,0.00038219,2]
[387852314,1758930650151,-150.0,0.00038219,2]
[387852315,1758930650160,-189.862969,0.00038263,60]
[387852316,1758930650169,-500.0,0.00038266,30]
[387852317,1758930650179,-1060.0,0.00038282,2]
[387852318,1758930650188,-651.0,0.000383,2]
[387852319,1758930650199,-307.1761053,0.00038311,30]
[387852320,1758930650208,-163.57358115,0.00038356,2]
[387852321,1758930650218,-794.792647,0.00038356,2]
[387852322,1758930650227,-500.0,0.00038359,30]
[387852323,1758930650237,-500.0,0.00038376,30]
[387852324,1758930650247,-500.0,0.00038377,30]
[387852325,1758930650256,-615.82031076,0.000387,120]
[387852326,1758930650265,-1579.467729,0.000388,29]
[387852327,1758930650274,-1160.0,0.00038829,2]
[387852328,1758930650283,-180.57188624,0.00038846,30]
[387852329,1758930650292,-150.0,0.00038846,30]
[387852330,1758930650302,-999.0,0.00038904,120]
[387852331,1758930650311,-151.0,0.0003903,30]
[387852332,1758930650320,-175.80869951,0.00039041,120]
[387852333,1758930650330,-1044.3405762,0.00039041,2]
[387852334,1758930650339,-1316.27698833,0.00039076,120]
[387852335,1758930650348,-1009.026192,0.000393,13]
[387852336,1758930650358,-1500.0,0.000393,29]
[387852337,1758930650367,-1260.0,0.00039377,2]
[387852338,1758930650376,-622.77775158,0.00039418,2]
[387852339,1758930650386,-500.0,0.00039486,30]
[387852340,1758930650395,-999.0,0.00039726,120]
[387852341,1758930650405,-175.80869951,0.000399,120]
[387852342,1758930650415,-1360.0,0.00039925,2]
[387852343,1758930650424,-1000.0,0.00039973,5]
[387852344,1758930650434,-33444.8577442,0.0003998,3]
[387852345,1758930650443,-839.3633578,0.0003998,3]
[387852346,1758930650452,-190732.78021651,0.0003999,120]
[387852347,1758930650462,-8361.21443604,0.0003999,3]
[387852348,1758930650471,-209.84083945,0.0003999,3]
[387852349,1758930650480,-1097.0,0.0003999,5]
[387852350,1758930650490,-1200.99161519,0.0004,2]
[387852351,1758930650499,-500.0,0.0004,2]
[387852352,1758930650508,-10221.79294696,0.0004,60]
[387852353,1758930650518,-12286.57169777,0.0004,15]
[387852354,1758930650527,-500.0,0.0004,120]
[387852355,1758930650537,-337.60430945,0.0004,120]
[387852356,1758930650547,-519.77163818,0.0004,30]
[387852357,1758930650557,-150.0,0.0004,30]
[387852358,1758930650567,-10000.0,0.0004,90]
[387852359,1758930650576,-500.0,0.00040108,30]
[387852360,1758930650586,-500.0,0.00040211,7]
[387852361,1758930650595,-30648.2672412,0.0004038,2]
[387852362,1758930650606,-1460.0,0.00040473,2]
[387852363,1758930650616,-1000.0,0.00040492,5]
[387852364,1758930650625,-999.0,0.00040547,120]
[387852365,1758930650635,-233.02388,0.00040576,2]
[387852366,1758930650644,-252.94445901,0.00040658,120]
[387852367,1758930650654,-851.19360881,0.00040785,30]
[387852368,1758930650667,-201.0,0.0004081,55]
[387852369,1758930650677,-500.0,0.00040889,30]
[387852370,1758930650686,-622.77775158,0.00040909,28]
[387852371,1758930650695,-500.0,0.00040933,30]
[387852372,1758930650705,-4037.9240119,0.00040966,2]
[387852373,1758930650719,-684.80254284,0.00040975,30]
[387852374,1758930650732,-151.0,0.00041001,30]
[387852375,1758930650745,-1560.0,0.00041021,2]
[387852376,1758930650756,-500.0,0.00041033,7]
[387852377,1758930650770,-8088.87,0.000411,14]
[387852378,1758930650783,-155.46014244,0.00041205,30]
[387852379,1758930650792,-233.19021366,0.00041205,30]
[387852380,1758930650803,-978.0,0.00041219,2]
[387852381,1758930650813,-635.0,0.00041219,2]
[387852382,1758930650826,-2160.0,0.00041219,2]
[387852383,1758930650840,-150.0,0.00041219,2]
[387852384,1758930650854,-2000.0,0.00041342,10]
[387852385,1758930650866,-999.0,0.00041369,120]
[387852386,1758930650879,-233.19021366,0.00041397,30]
[387852387,1758930650889,-1316.27698833,0.0004142,120]
[387852388,1758930650900,-155.46014244,0.00041479,30]
[387852389,1758930650910,-15608.3431066,0.00041536,2]
[387852390,1758930650922,-1079.2750412,0.00041569,2]
[387852391,1758930650934,-233.19021366,0.00041616,30]
[387852392,1758930650949,-155.46014244,0.00041753,30]
[387852393,1758930650961,-233.19021366,0.00041808,30]
[387852394,1758930650974,-500.0,0.00041855,60]
[387852395,1758930650986,-233.19021366,0.00042,30]
[387852396,1758930651123,-155.46014244,0.00042027,30]
[387852397,1758930651134,-999.0,0.00042191,120]
[387852398,1758930651144,-233.19021366,0.00042192,30]
[387852399,1758930651153,-155.46014244,0.00042301,30]
[387852400,1758930651163,-166.95351002,0.00042358,26]
[387852401,1758930651173,-622.77775158,0.000424,28]
[387852402,1758930651182,-165.66239392,0.000424,120]
[387852403,1758930651192,-233.19021366,0.00042411,30]
[387852404,1758930651201,-500.0,0.00042466,120]
[387852405,1758930651210,-1000.0,0.0004249,60]
[387852406,1758930651219,-2481789.56888305,0.000425,2]
[387852407,1758930651229,-10000.0,0.000425,100]
[387852408,1758930651238,-155.46014244,0.00042575,30]
[387852409,1758930651247,-233.19021366,0.00042603,30]
[387852410,1758930651256,-500.0,0.00042712,10]
[387852411,1758930651265,-500.0,0.0004274,120]
[387852412,1758930651274,-233.19021366,0.00042795,30]
[387852413,1758930651283,-189.862969,0.0004283,60]
[387852414,1758930651292,-155.46014244,0.00042849,30]
[387852415,1758930651301,-653.10539852,0.00042906,3]
[387852416,1758930651309,-2612.42159408,0.00042906,3]
[387852417,1758930651319,-5872.07063809,0.00042906,3]
[387852418,1758930651328,-992.96131944,0.00042906,3]
[387852419,1758930651336,-3967.87343247,0.00042906,3]
[387852420,1758930651345,-800.0,0.00042948,14]
[387852421,1758930651354,-500.0,0.00042951,60]
[387852422,1758930651363,-151.0,0.00042971,120]
[387852423,1758930651372,-233.19021366,0.00042986,30]
[387852424,1758930651381,-1536.0,0.00043005,5]
[387852425,1758930651391,-800.0,0.0004301,14]
[387852426,1758930651399,-800.0,0.0004303,14]
[387852427,1758930651409,-691.91053659,0.00043119,14]
[387852428,1758930651417,-155.46014244,0.00043123,30]
[387852429,1758930651426,-800.0,0.00043141,14]
[387852430,1758930651436,-800.0,0.00043159,14]
[387852431,1758930651445,-233.19021366,0.00043205,30]
[387852432,1758930651454,-1250.0,0.00043232,10]
[387852433,1758930651463,-800.0,0.00043348,14]
[387852434,1758930651471,-328.0,0.00043395,14]
[387852435,1758930651480,-328.0,0.00043395,14]
[387852436,1758930651489,-328.0,0.00043395,14]
[387852437,1758930651498,-328.0,0.00043395,14]
[387852438,1758930651507,-328.0,0.00043395,14]
[387852439,1758930651516,-328.0,0.00043395,14]
[387852440,1758930651525,-328.0,0.00043395,14]
[387852441,1758930651535,-328.0,0.00043395,14]
[387852442,1758930651543,-328.0,0.00043395,14]
[387852443,1758930651552,-328.0,0.00043395,14]
[387852444,1758930651561,-328.0,0.00043395,14]
[387852445,1758930651570,-328.0,0.00043395,14]
[387852446,1758930651579,-328.0,0.00043395,14]
[387852447,1758930651588,-328.0,0.00043395,14]
[387852448,1758930651596,-328.0,0.00043395,14]
[387852449,1758930651603,-328.0,0.00043395,14]
[387852450,1758930651610,-328.0,0.00043395,14]
[387852451,1758930651618,-328.0,0.00043395,14]
[387852452,1758930651626,-328.0,0.00043395,14]
[387852453,1758930651633,-328.0,0.00043395,14]
[387852454,1758930651640,-328.0,0.00043395,14]
[387852455,1758930651648,-328.0,0.00043395,14]
[387852456,1758930651656,-328.0,0.00043395,14]
[387852457,1758930651666,-328.0,0.00043395,14]
[387852458,1758930651673,-328.0,0.00043395,14]
[387852459,1758930651681,-328.0,0.00043395,14]
[387852460,1758930651690,-328.0,0.00043395,14]
[387852461,1758930651698,-328.0,0.00043395,14]
[387852462,1758930651705,-328.0,0.00043395,14]
[387852463,1758930651712,-328.0,0.00043395,14]
[387852464,1758930651719,-328.0,0.00043395,14]
[387852465,1758930651726,-328.0,0.00043395,14]
[387852466,1758930651735,-328.0,0.00043395,14]
[387852467,1758930651747,-328.0,0.00043395,14]
[387852468,1758930651757,-328.0,0.00043395,14]
[387852469,1758930651766,-328.0,0.00043395,14]
[387852470,1758930651775,-328.0,0.00043395,14]
[387852471,1758930651784,-328.0,0.00043395,14]
[387852472,1758930651793,-328.0,0.00043395,14]
[387852473,1758930651802,-328.0,0.00043395,14]
[387852474,1758930651811,-328.0,0.00043395,14]
[387852475,1758930651820,-328.0,0.00043395,14]
[387852476,1758930651829,-328.0,0.00043395,14]
[387852477,1758930651838,-328.0,0.00043395,14]
[387852478,1758930651848,-328.0,0.00043395,14]
[387852479,1758930651857,-328.0,0.00043395,14]
[387852480,1758930651866,-328.0,0.00043395,14]
[387852481,1758930651875,-328.0,0.00043395,14]
[387852482,1758930651884,-328.0,0.00043395,14]
[387852483,1758930651894,-328.0,0.00043395,14]
[387852484,1758930651903,-401.95584941,0.00043395,14]
[387852485,1758930651911,-166.0,0.00043395,14]
[387852486,1758930651918,-166.0,0.00043395,14]
[387852487,1758930651924,-166.0,0.00043395,14]
[387852488,1758930651931,-172.0,0.00043395,14]
[387852489,1758930651940,-155.46014244,0.00043397,30]
[387852490,1758930651948,-233.19021366,0.00043397,30]
[387852491,1758930651956,-800.0,0.00043455,14]
[387852492,1758930651963,-500.0,0.00043473,10]
[387852493,1758930651969,-151.0,0.00043499,120]
[387852494,1758930651977,-151.0,0.00043499,120]
[387852495,1758930651986,-151.0,0.00043499,120]
[387852496,1758930651995,-151.0,0.00043499,120]
[387852497,1758930652012,-151.0,0.00043499,120]
[387852498,1758930652025,-151.0,0.00043499,120]
[387852499,1758930652035,-151.0,0.00043499,120]
[387852500,1758930652044,-156.060014,0.00043499,120]
[387852501,1758930652055,-151.0,0.00043499,120]
[387852502,1758930652065,-151.0,0.00043499,120]
[387852503,1758930652075,-151.0,0.00043499,120]
[387852504,1758930652084,-191.890217,0.00043499,120]
[387852505,1758930652095,-191.890217,0.00043499,120]
[387852506,1758930652105,-191.890217,0.00043499,120]
[387852507,1758930652115,-191.890217,0.00043499,120]
[387852508,1758930652125,-151.0,0.00043499,120]
[387852509,1758930652134,-211.794406,0.00043499,120]
[387852510,1758930652144,-211.794406,0.00043499,120]
[387852511,1758930652154,-211.794406,0.00043499,120]
[387852512,1758930652165,-211.794406,0.00043499,120]
[387852513,1758930652174,-151.0,0.00043499,120]
[387852514,1758930652184,-151.0,0.00043499,120]
[387852515,1758930652194,-151.0,0.00043499,120]
[387852516,1758930652204,-151.0,0.00043499,120]
[387852517,1758930652214,-151.0,0.00043499,120]
[387852518,1758930652223,-151.0,0.00043499,120]
[387852519,1758930652233,-151.0,0.00043499,30]
[387852520,1758930652243,-151.0,0.00043499,120]
[387852521,1758930652252,-151.0,0.00043499,120]
[387852522,1758930652261,-289.397277,0.00043499,120]
[387852523,1758930652271,-151.0,0.00043499,30]
[387852524,1758930652282,-151.0,0.00043499,120]
[387852525,1758930652292,-151.0,0.00043499,120]
[387852526,1758930652302,-151.0,0.00043499,120]
[387852527,1758930652313,-151.0,0.00043499,120]
[387852528,1758930652325,-151.0,0.00043499,120]
[387852529,1758930652335,-151.0,0.00043499,14]
[387852530,1758930652344,-183.298764,0.00043499,120]
[387852531,1758930652353,-151.0,0.00043499,120]
[387852532,1758930652363,-183.298764,0.00043499,120]
[387852533,1758930652373,-183.298764,0.00043499,120]
[387852534,1758930652382,-183.298764,0.00043499,120]
[387852535,1758930652391,-151.0,0.00043499,120]
[387852536,1758930652400,-188.771424,0.00043499,120]
[387852537,1758930652411,-188.771424,0.00043499,120]
[387852538,1758930652420,-188.771424,0.00043499,120]
[387852539,1758930652430,-151.0,0.00043499,120]
[387852540,1758930652440,-188.771424,0.00043499,120]
[387852541,1758930652449,-151.0,0.00043499,120]
[387852542,1758930652459,-151.0,0.00043499,120]
[387852543,1758930652469,-151.0,0.00043499,120]
[387852544,1758930652478,-151.0,0.00043499,120]
[387852545,1758930652488,-151.0,0.00043499,120]
[387852546,1758930652498,-151.0,0.00043499,120]
[387852547,1758930652507,-151.0,0.00043499,120]
[387852548,1758930652516,-151.0,0.00043499,120]
[387852549,1758930652525,-151.0,0.00043499,120]
[387852550,1758930652534,-942.968687,0.00043499,120]
[387852551,1758930652543,-942.968687,0.00043499,120]
[387852552,1758930652553,-942.968687,0.00043499,120]
[387852553,1758930652562,-942.968687,0.00043499,120]
[387852554,1758930652571,-151.0,0.00043499,120]
[387852555,1758930652581,-151.0,0.00043499,120]
[387852556,1758930652590,-151.0,0.00043499,120]
[387852557,1758930652600,-155.53,0.00043499,120]
[387852558,1758930652609,-155.53,0.00043499,120]
[387852559,1758930652619,-155.53,0.00043499,120]
[387852560,1758930652628,-155.53,0.00043499,120]
[387852561,1758930652638,-397.10024,0.00043499,30]
[387852562,1758930652647,-151.0,0.00043499,120]
[387852563,1758930652657,-397.10024,0.00043499,30]
[387852564,1758930652669,-151.0,0.00043499,120]
[387852565,1758930652678,-397.10024,0.00043499,30]
[387852566,1758930652687,-174.20655,0.00043499,120]
[387852567,1758930652697,-151.0,0.00043499,120]
[387852568,1758930652708,-237.973394,0.00043499,120]
[387852569,1758930652718,-397.10024,0.00043499,30]
[387852570,1758930652728,-174.20655,0.00043499,120]
[387852571,1758930652740,-237.973394,0.00043499,120]
[387852572,1758930652749,-174.20655,0.00043499,120]
[387852573,1758930652759,-237.973394,0.00043499,120]
[387852574,1758930652768,-174.20655,0.00043499,120]
[387852575,1758930652778,-237.973394,0.00043499,120]
[387852576,1758930652787,-151.0,0.00043499,120]
[387852577,1758930652797,-151.0,0.00043499,120]
[387852578,1758930652806,-151.0,0.00043499,120]
[387852579,1758930652816,-151.0,0.00043499,120]
[387852580,1758930652826,-151.0,0.00043499,120]
[387852581,1758930652836,-336.001437,0.00043499,120]
[387852582,1758930652845,-151.0,0.00043499,120]
[387852583,1758930652855,-336.001437,0.00043499,120]
[387852584,1758930652865,-151.0,0.00043499,120]
[387852585,1758930652875,-336.001437,0.00043499,120]
[387852586,1758930652884,-336.001437,0.00043499,120]
[387852587,1758930652894,-166.369085,0.00043499,120]
[387852588,1758930652904,-166.369085,0.00043499,120]
[387852589,1758930652914,-166.369085,0.00043499,120]
[387852590,1758930652923,-151.0,0.00043499,120]
[387852591,1758930652933,-166.369085,0.00043499,120]
[387852592,1758930652943,-348.273229,0.00043499,120]
[387852593,1758930652952,-348.273229,0.00043499,120]
[387852594,1758930652961,-348.273229,0.00043499,120]
[387852595,1758930652971,-348.273229,0.00043499,120]
[387852596,1758930652979,-152.937405,0.00043499,120]
[387852597,1758930652988,-152.937405,0.00043499,120]
[387852598,1758930652997,-151.0,0.00043499,120]
[387852599,1758930653006,-152.937405,0.00043499,120]
[387852600,1758930653015,-152.937405,0.00043499,120]
[387852601,1758930653024,-151.0,0.00043499,120]
[387852602,1758930653034,-162.534835,0.00043499,120]
[387852603,1758930653043,-1680.544564,0.00043499,120]
[387852604,1758930653053,-151.0,0.00043499,120]
[387852605,1758930653062,-1680.544564,0.00043499,120]
[387852606,1758930653071,-1680.544564,0.00043499,120]
[387852607,1758930653080,-1680.544564,0.00043499,120]
[387852608,1758930653089,-204.923577,0.00043499,120]
[387852609,1758930653098,-204.923577,0.00043499,120]
[387852610,1758930653107,-235.009596,0.00043499,120]
[387852611,1758930653117,-204.923577,0.00043499,120]
[387852612,1758930653127,-235.009596,0.00043499,120]
[387852613,1758930653136,-204.923577,0.00043499,120]
[387852614,1758930653146,-235.009596,0.00043499,120]
[387852615,1758930653156,-235.009596,0.00043499,120]
[387852616,1758930653165,-151.0,0.00043499,120]
[387852617,1758930653175,-151.0,0.00043499,120]
[387852618,1758930653184,-151.0,0.00043499,120]
[387852619,1758930653194,-151.0,0.00043499,120]
[387852620,1758930653203,-151.0,0.00043499,120]
[387852621,1758930653212,-151.0,0.00043499,120]
[387852622,1758930653222,-151.0,0.00043499,120]
[387852623,1758930653231,-151.0,0.00043499,120]
[387852624,1758930653240,-151.0,0.00043499,120]
[387852625,1758930653249,-198.960948,0.00043499,120]
[387852626,1758930653259,-151.0,0.00043499,120]
[387852627,1758930653409,-198.960948,0.00043499,120]
[387852628,1758930653431,-198.960948,0.00043499,120]
[387852629,1758930653439,-282.219853,0.00043499,120]
[387852630,1758930653445,-198.960948,0.00043499,120]
[387852631,1758930653452,-282.219853,0.00043499,120]
[387852632,1758930653460,-151.0,0.00043499,120]
[387852633,1758930653468,-282.219853,0.00043499,120]
[387852634,1758930653477,-151.0,0.00043499,120]
[387852635,1758930653484,-282.219853,0.00043499,120]
[387852636,1758930653491,-151.0,0.00043499,120]
[387852637,1758930653498,-151.734475,0.00043499,120]
[387852638,1758930653507,-151.0,0.00043499,120]
[387852639,1758930653514,-151.0,0.00043499,120]
[387852640,1758930653522,-151.0,0.00043499,120]
[387852641,1758930653531,-151.0,0.00043499,120]
[387852642,1758930653539,-107115.91364505,0.000435,120]
[387852643,1758930653548,-450279.29195655,0.000435,120]
[387852644,1758930653559,-8088.87,0.000435,14]
[387852645,1758930653568,-500.0,0.00043562,120]
[387852646,1758930653577,-1000.0,0.000438,90]
[387852647,1758930653587,-500.0,0.00043836,120]
[387852648,1758930653597,-794.792647,0.00043836,2]
[387852649,1758930653606,-200.0,0.00043841,120]
[387852650,1758930653615,-2000.0,0.000439,120]
[387852651,1758930653625,-1000.0,0.00044,30]
[387852652,1758930653634,-13000.0,0.00044,7]
[387852653,1758930653643,-233.71402077,0.00044,10]
[387852654,1758930653652,-233.71402077,0.00044,7]
[387852655,1758930653663,-233.71402077,0.00044,120]
[387852656,1758930653673,-4587.0,0.00044024,120]
[387852657,1758930653683,-500.0,0.00044047,60]
[387852658,1758930653692,-150.0,0.000441,2]
[387852659,1758930653701,-160.0,0.00044178,3]
[387852660,1758930653712,-635.0,0.00044219,2]
[387852661,1758930653721,-2160.0,0.00044219,2]
[387852662,1758930653731,-1000000.0,0.0004444,2]
[387852663,1758930653741,-153.969922,0.0004444,120]
[387852664,1758930653751,-151.0,0.0004444,120]
[387852665,1758930653761,-151.0,0.0004444,120]
[387852666,1758930653771,-151.0,0.0004444,120]
[387852667,1758930653780,-151.0,0.0004444,120]
[387852668,1758930653789,-151.0,0.0004444,120]
[387852669,1758930653798,-151.0,0.0004444,120]
[387852670,1758930653807,-151.0,0.0004444,120]
[387852671,1758930653816,-151.0,0.0004444,120]
[387852672,1758930653826,-151.0,0.0004444,120]
[387852673,1758930653835,-191.890217,0.0004444,120]
[387852674,1758930653844,-191.890217,0.0004444,120]
[387852675,1758930653853,-191.890217,0.0004444,120]
[387852676,1758930653862,-191.890217,0.0004444,120]
[387852677,1758930653872,-151.0,0.0004444,120]
[387852678,1758930653881,-211.794406,0.0004444,120]
[387852679,1758930653891,-211.794406,0.0004444,120]
[387852680,1758930653900,-211.794406,0.0004444,120]
[387852681,1758930653909,-211.794406,0.0004444,120]
[387852682,1758930653918,-151.0,0.0004444,120]
[387852683,1758930653927,-151.0,0.0004444,120]
[387852684,1758930653937,-151.0,0.0004444,120]
[387852685,1758930653945,-151.0,0.0004444,120]
[387852686,1758930653955,-151.0,0.0004444,120]
[387852687,1758930653963,-151.0,0.0004444,120]
[387852688,1758930653975,-151.0,0.0004444,30]
[387852689,1758930653984,-151.0,0.0004444,120]
[387852690,1758930653993,-151.0,0.0004444,120]
[387852691,1758930654002,-151.0,0.0004444,30]
[387852692,1758930654011,-151.0,0.0004444,120]
[387852693,1758930654021,-151.0,0.0004444,120]
[387852694,1758930654031,-175.06405,0.0004444,120]
[387852695,1758930654040,-151.0,0.0004444,120]
[387852696,1758930654049,-151.0,0.0004444,120]
[387852697,1758930654059,-151.0,0.0004444,14]
[387852698,1758930654068,-183.298764,0.0004444,120]
[387852699,1758930654078,-151.0,0.0004444,120]
[387852700,1758930654088,-183.298764,0.0004444,120]
[387852701,1758930654097,-183.298764,0.0004444,120]
[387852702,1758930654106,-183.298764,0.0004444,120]
[387852703,1758930654116,-151.0,0.0004444,120]
[387852704,1758930654126,-188.771424,0.0004444,120]
[387852705,1758930654136,-188.771424,0.0004444,120]
[387852706,1758930654146,-188.771424,0.0004444,120]
[387852707,1758930654156,-151.0,0.0004444,120]
[387852708,1758930654165,-188.771424,0.0004444,120]
[387852709,1758930654175,-151.0,0.0004444,120]
[387852710,1758930654184,-151.0,0.0004444,120]
[387852711,1758930654194,-151.0,0.0004444,120]
[387852712,1758930654203,-151.0,0.0004444,120]
[387852713,1758930654212,-151.0,0.0004444,120]
[387852714,1758930654221,-151.0,0.0004444,120]
[387852715,1758930654230,-151.0,0.0004444,120]
[387852716,1758930654240,-195.472467,0.0004444,120]
[387852717,1758930654249,-151.0,0.0004444,120]
[387852718,1758930654258,-942.968687,0.0004444,120]
[387852719,1758930654267,-942.968687,0.0004444,120]
[387852720,1758930654276,-942.968687,0.0004444,120]
[387852721,1758930654286,-942.968687,0.0004444,120]
[387852722,1758930654295,-151.0,0.0004444,120]
[387852723,1758930654304,-151.0,0.0004444,120]
[387852724,1758930654313,-151.0,0.0004444,120]
[387852725,1758930654323,-155.53,0.0004444,120]
[387852726,1758930654332,-155.53,0.0004444,120]
[387852727,1758930654341,-155.53,0.0004444,120]
[387852728,1758930654351,-155.53,0.0004444,120]
[387852729,1758930654360,-397.10024,0.0004444,30]
[387852730,1758930654370,-151.0,0.0004444,120]
[387852731,1758930654379,-397.10024,0.0004444,30]
[387852732,1758930654389,-151.0,0.0004444,120]
[387852733,1758930654398,-397.10024,0.0004444,30]
[387852734,1758930654408,-174.20655,0.0004444,120]
[387852735,1758930654416,-151.0,0.0004444,120]
[387852736,1758930654425,-237.973394,0.0004444,120]
[387852737,1758930654435,-397.10024,0.0004444,30]
[387852738,1758930654444,-174.20655,0.0004444,120]
[387852739,1758930654453,-237.973394,0.0004444,120]
[387852740,1758930654464,-174.20655,0.0004444,120]
[387852741,1758930654472,-237.973394,0.0004444,120]
[387852742,1758930654482,-174.20655,0.0004444,120]
[387852743,1758930654490,-237.973394,0.0004444,120]
[387852744,1758930654499,-151.0,0.0004444,120]
[387852745,1758930654509,-151.0,0.0004444,120]
[387852746,1758930654518,-151.0,0.0004444,120]
[387852747,1758930654527,-151.0,0.0004444,120]
[387852748,1758930654536,-336.001437,0.0004444,120]
[387852749,1758930654546,-151.0,0.0004444,120]
[387852750,1758930654555,-336.001437,0.0004444,120]
[387852751,1758930654564,-151.0,0.0004444,120]
[387852752,1758930654573,-336.001437,0.0004444,120]
[387852753,1758930654583,-336.001437,0.0004444,120]
[387852754,1758930654592,-166.369085,0.0004444,120]
[387852755,1758930654601,-166.369085,0.0004444,120]
[387852756,1758930654610,-166.369085,0.0004444,120]
[387852757,1758930654619,-151.0,0.0004444,120]
[387852758,1758930654628,-166.369085,0.0004444,120]
[387852759,1758930654637,-348.273229,0.0004444,120]
[387852760,1758930654646,-348.273229,0.0004444,120]
[387852761,1758930654654,-348.273229,0.0004444,120]
[387852762,1758930654666,-348.273229,0.0004444,120]
[387852763,1758930654675,-152.937405,0.0004444,120]
[387852764,1758930654684,-152.937405,0.0004444,120]
[387852765,1758930654693,-151.0,0.0004444,120]
[387852766,1758930654703,-152.937405,0.0004444,120]
[387852767,1758930654711,-152.937405,0.0004444,120]
[387852768,1758930654720,-151.0,0.0004444,120]
[387852769,1758930654729,-1680.544564,0.0004444,120]
[387852770,1758930654738,-151.0,0.0004444,120]
[387852771,1758930654747,-1680.544564,0.0004444,120]
[387852772,1758930654757,-1680.544564,0.0004444,120]